bitfinex-derivatives/quotes_ETHF0:USTF0_20250626
["timestamp","ask_amount","ask_price","bid_price","bid_amount"]
[1750901441310,0.16802,2439.6,2439.5,0.81939]
[1750901441814,2.15051,2439.8,2439.5,0.81939]
[1750901442119,0.81928,2439.9,2439.7,0.81933]
[1750901442413,0.16802,2439.7,2439.6,8.23795102]
[1750901442810,0.16802,2439.7,2439.6,0.81936]
[1750901443819,0.16802,2439.7,2439.4,3.2078]
[1750901444008,0.16802,2439.7,2439.6,0.81936]
[1750901444203,0.16802,2439.7,2439.6,5.90723911]
[1750901444409,0.98735,2439.7,2439.6,5.90723911]
[1750901444917,0.81936,2439.6,2439.4,9.93446911]
[1750901445209,0.16802,2439.6,2439.5,0.81939]
[1750901445415,3.2078,2440.0,2439.6,0.81934]
[1750901445416,0.81931,2439.8,2439.6,0.81934]
[1750901445710,0.16802,2439.6,2439.5,0.81938]
[1750901445909,0.16802,2439.6,2439.5,0.81939]
[1750901446711,4.5733,2440.0,2439.4,10.3100893]
[1750901446915,0.8193,2439.8,2439.7,5.90723911]
[1750901447312,0.98732,2439.8,2439.4,5.22226019]
[1750901447517,0.98739,2439.6,2439.4,11.1294993]
[1750901448006,1.51232,2439.5,2439.4,4.40285019]
[1750901448213,1.51232,2439.5,2439.4,5.22228019]
[1750901448513,1.51232,2439.5,2439.4,4.02723]
[1750901449408,1.51232,2439.5,2439.4,5.62913387]
[1750901449818,3.2078,2440.0,2439.4,3.2078]
[1750901450005,0.16802,2439.6,2439.5,2.42913001]
[1750901451315,0.16802,2439.6,2439.5,8.33636912]
[1750901451515,1.59192,2439.6,2439.5,8.33636912]
[1750901451717,0.16802,2439.6,2439.5,8.33636912]
[1750901452309,0.16802,2439.6,2439.5,6.72662911]
[1750901452813,1.4239,2439.9,2439.5,5.90723911]
[1750901453012,0.81922,2440.1,2439.8,7.51912536]
[1750901453208,0.16802,2440.0,2439.9,0.81926]
[1750901453609,0.16802,2440.0,2439.9,2.43114625]
[1750901454018,0.16802,2440.0,2439.8,7.51912536]
[1750901454320,2.37308,2439.9,2439.8,7.51912536]
[1750901454519,1.55382,2439.9,2439.8,8.33841536]
[1750901454820,3.2078,2440.3,2439.8,8.30985366]
[1750901455014,3.2078,2440.3,2440.1,7.11622805]
[1750901455320,0.7048,2440.8,2440.1,9.11503911]
[1750901455321,0.819,2440.7,2440.1,9.11503911]
[1750901455524,0.819,2440.7,2440.6,7.11603755]
[1750901456022,0.98702,2440.7,2440.6,7.11603755]
[1750901456910,0.16802,2440.7,2440.5,1.20879844]
[1750901457110,0.98705,2440.6,2440.5,1.20879844]
[1750901457716,3.2078,2440.8,2440.5,7.51897036]
[1750901457926,3.2078,2440.8,2440.7,2.02863019]
[1750901458115,4.19478,2440.8,2440.7,1.20962061]
[1750901458624,3.37582,2440.8,2440.7,1.20962061]
[1750901458919,4.19478,2440.8,2440.7,1.20962061]
[1750901459819,0.98698,2440.8,2440.7,1.20962061]
[1750901460020,4.19478,2440.8,2440.7,1.20962061]
[1750901460214,0.81899,2440.7,2440.6,1.20962061]
[1750901460420,0.98701,2440.7,2440.5,1.61173125]
[1750901460617,0.16802,2440.6,2440.5,2.43079125]
[1750901461017,0.81897,2440.8,2440.6,0.81901]
[1750901461217,0.16802,2440.6,2440.5,3.23665688]
[1750901461825,0.81903,2440.6,2440.4,9.14390599]
[1750901462030,0.81901,2440.7,2440.5,0.81906]
[1750901462228,0.16802,2440.6,2440.5,0.81906]
[1750901462518,0.16802,2440.6,2440.5,3.23665688]
[1750901462729,0.81896,2440.8,2440.6,0.819]
[1750901463029,0.16802,2440.7,2440.6,2.43307221]
[1750901464122,0.98701,2440.7,2440.6,1.21078753]
[1750901466428,0.81906,2440.5,2440.4,2.43316221]
[1750901466628,0.16802,2440.5,2440.4,2.43316221]
[1750901466823,0.81903,2440.6,2440.4,9.14390599]
[1750901467030,0.16802,2440.5,2440.4,9.14390599]
[1750901467326,0.81906,2440.5,2440.4,5.90723911]
[1750901467526,0.81906,2440.5,2440.4,7.52248331]
[1750901467726,0.16802,2440.5,2440.4,7.52248331]
[1750901467932,0.98708,2440.5,2440.4,7.52248331]
[1750901468120,0.98708,2440.5,2440.4,1.6152442]
[1750901469125,0.81909,2440.4,2440.3,1.6152442]
[1750901469330,0.81913,2440.3,2440.2,1.2119403]
[1750901469628,0.98715,2440.3,2440.2,1.2119403]
[1750901470025,0.81916,2440.2,2440.1,1.2119403]
[1750901470226,0.81916,2440.2,2439.4,4.10675132]
[1750901470227,0.81929,2439.8,2439.7,1.21294722]
[1750901470427,0.81936,2439.6,2439.5,1.6152442]
[1750901470631,0.81939,2439.5,2439.4,1.6152442]
[1750901470829,2.39911,2439.5,2439.4,1.6152442]
[1750901471131,2.39911,2439.5,2439.3,4.8230442]
[1750901471328,0.16802,2439.4,2439.3,4.8230442]
[1750901471527,0.98745,2439.4,2439.3,4.8230442]
[1750901471923,0.16802,2439.4,2439.3,4.8230442]
[1750901472238,0.98745,2439.4,2439.3,4.8230442]
[1750901472528,2.34185,2439.4,2439.3,3.2078]
[1750901473333,0.81946,2439.3,2439.2,1.6152442]
[1750901473528,2.34188,2439.3,2439.2,1.6152442]
[1750901473830,0.8195,2439.2,2439.1,5.02761466]
[1750901474023,2.34192,2439.2,2439.1,5.02761466]
[1750901474524,0.16802,2439.1,2438.5,5.84731466]
[1750901474832,0.16802,2438.7,2438.5,0.8197]
[1750901475127,1.3776,2439.0,2438.4,3.2078]
[1750901475332,8.563,2439.3,2438.3,0.81977]
[1750901475333,0.16802,2438.6,2438.3,0.81977]
[1750901475528,0.98772,2438.6,2438.3,0.81977]
[1750901475734,0.98775,2438.5,2438.2,4.68361688]
[1750901475937,0.16802,2438.5,2438.4,5.02761466]
[1750901476122,1.3776,2438.8,2438.4,5.84737466]
[1750901476328,0.16802,2438.5,2438.4,5.02761466]
[1750901476529,0.16802,2438.5,2438.4,5.10963565]
[1750901476828,2.19725,2438.8,2438.5,0.81972]
[1750901477236,0.16802,2438.6,2438.4,9.13717565]
[1750901477434,0.16802,2438.5,2438.4,9.13717565]
[1750901477733,0.98775,2438.5,2438.4,0.08202099]
[1750901478235,2.30955,2438.5,2438.4,0.08202099]
[1750901479132,0.16802,2438.5,2438.4,5.10963565]
[1750901480038,0.16802,2438.5,2438.4,5.92939565]
[1750901480532,13.0956,2438.9,2438.4,8.23541466]
[1750901480734,0.16802,2438.6,2438.5,0.81973]
[1750901481038,0.16802,2438.7,2438.6,0.81968]
[1750901481436,3.2078,2438.9,2438.7,0.81963]
[1750901481639,0.16802,2438.8,2438.7,0.81963]
[1750901481840,0.16802,2438.8,2438.7,5.84724466]
[1750901482139,4.0274,2438.9,2438.7,5.02761466]
[1750901482341,0.16802,2438.8,2438.7,5.02761466]
[1750901482539,0.16802,2438.8,2438.7,5.84727466]
[1750901482840,3.2078,2438.9,2438.7,5.84727466]
[1750901483041,0.16802,2438.8,2438.7,5.84727466]
[1750901483440,4.0274,2438.9,2438.7,5.02761466]
[1750901483738,0.16802,2438.8,2438.7,5.84727466]
[1750901484140,3.2078,2438.9,2438.7,5.02761466]
[1750901484141,4.0274,2438.9,2438.7,5.02761466]
[1750901484332,0.98765,2438.8,2438.7,5.02761466]
[1750901484832,0.81963,2438.8,2438.7,5.02761466]
[1750901486243,3.2078,2439.0,2438.7,5.84725466]
[1750901486438,0.16802,2438.8,2438.7,5.84725466]
[1750901486839,5.37748,2439.0,2438.7,5.84725466]
[1750901487034,0.16802,2438.8,2438.7,5.02761466]
[1750901487348,0.98762,2438.9,2438.7,5.84725466]
[1750901487744,0.81963,2438.8,2438.7,5.02761466]
[1750901489439,0.81966,2438.7,2438.5,1.54563]
[1750901489742,0.16802,2438.6,2438.5,1.54563]
[1750901490142,0.81964,2438.8,2438.6,0.81969]
[1750901490340,0.98768,2438.7,2438.5,1.54561]
[1750901490846,0.8197,2438.6,2438.5,0.7259]
[1750901491048,0.8197,2438.6,2438.5,1.54563]
[1750901491244,0.8197,2438.6,2438.5,0.7259]
[1750901491447,4.6375,2439.0,2438.5,0.7259]
[1750901491646,0.8197,2438.6,2438.5,0.7259]
[1750901491847,0.98772,2438.6,2438.5,0.7259]
[1750901492041,2.41745,2438.6,2438.4,4.02756]
[1750901492246,0.98775,2438.5,2438.4,3.2078]
[1750901492544,4.70862,2438.5,2438.1,3.9338]
[1750901492748,0.98785,2438.2,2438.1,3.9338]
[1750901493646,0.98785,2438.2,2438.1,0.726]
[1750901494449,0.98785,2438.2,2437.5,5.02761466]
[1750901494450,0.82003,2437.6,2437.5,5.02761466]
[1750901495151,1.3328,2438.1,2437.5,5.02761466]
[1750901495350,1.3328,2438.1,2437.4,3.2078]
[1750901495351,0.16802,2437.9,2437.8,5.84756466]
[1750901495741,0.16802,2437.9,2437.8,5.02761466]
[1750901496141,3.2078,2438.2,2437.8,5.02761466]
[1750901496442,0.81981,2438.3,2438.1,5.02761466]
[1750901496644,0.16802,2438.2,2438.1,5.84745466]
[1750901497844,0.16802,2438.2,2438.1,5.02761466]
[1750901498240,0.16802,2438.2,2438.1,5.84748466]
[1750901498436,27.881,2438.3,2438.1,5.02761466]
[1750901498646,27.881,2438.3,2438.1,5.84748466]
[1750901498647,0.16802,2438.2,2438.1,5.84748466]
[1750901499052,27.881,2438.3,2438.1,5.84748466]
[1750901499251,0.16802,2438.2,2438.1,5.84748466]
[1750901499750,27.881,2438.3,2438.1,5.84748466]
[1750901499955,0.16802,2438.2,2438.1,5.84748466]
[1750901500454,27.881,2438.3,2438.2,0.81983]
[1750901500849,28.04902,2438.3,2438.1,5.84746466]
[1750901501050,0.16802,2438.2,2438.1,5.84746466]
[1750901501444,9.07869,2438.7,2438.5,0.81973]
[1750901501645,38.24439,2438.7,2438.6,5.02761466]
[1750901502150,37.59272,2438.7,2438.6,5.84731466]
[1750901502352,3.2078,2439.1,2438.6,5.02761466]
[1750901502540,2.76528,2439.5,2439.0,5.02761466]
[1750901502541,1.3577,2439.2,2439.0,5.02761466]
[1750901502756,1.3577,2439.2,2439.0,5.84717466]
[1750901502757,29.96721,2439.2,2439.0,5.84717466]
[1750901502954,0.16802,2439.1,2439.0,5.84717466]
[1750901503656,27.781,2439.2,2439.1,0.81952]
[1750901503856,0.16802,2439.1,2439.0,5.02761466]
[1750901504045,0.16802,2439.1,2439.0,5.84717466]
[1750901504246,1.3577,2439.2,2439.0,5.02761466]
[1750901504455,0.16802,2439.1,2439.0,5.02761466]
[1750901504754,0.16802,2439.1,2439.0,5.84717466]
[1750901505054,2.17721,2439.2,2439.0,5.02761466]
[1750901505352,0.16802,2439.1,2439.0,5.84717466]
[1750901505553,27.89902,2439.2,2439.0,5.02761466]
[1750901505746,27.89902,2439.2,2439.0,5.84716466]
[1750901505947,0.16802,2439.2,2439.1,0.81953]
[1750901506349,29.1507,2439.3,2439.0,5.02761466]
[1750901506350,1.4347,2439.3,2439.0,5.02761466]
[1750901506542,0.16802,2439.2,2439.1,0.81953]
[1750901506952,3.2078,2439.4,2439.0,5.02761466]
[1750901507156,0.16802,2439.3,2439.2,0.81948]
[1750901507761,3.2078,2439.8,2439.2,9.82814363]
[1750901507952,3.37582,2439.8,2439.7,5.84694466]
[1750901508147,3.2078,2439.8,2439.7,5.84694466]
[1750901510648,2.15377,2440.2,2439.8,0.81928]
[1750901510854,0.16802,2440.0,2439.7,5.02761466]
[1750901511046,0.16802,2440.0,2439.8,0.81929]
[1750901511254,0.16802,2440.0,2439.6,3.2078]
[1750901511454,0.16802,2440.0,2439.8,5.02761466]
[1750901512055,0.16802,2440.0,2439.8,5.84690466]
[1750901512760,0.16802,2440.0,2439.8,5.02761466]
[1750901513751,0.16802,2440.0,2439.8,5.84690466]
[1750901513952,0.98725,2440.0,2439.8,5.02761466]
[1750901514650,0.16802,2440.0,2439.8,5.02761466]
[1750901514965,0.98725,2440.0,2439.8,5.02761466]
[1750901515266,0.81933,2439.7,2439.3,6.53085466]
[1750901515462,3.2078,2439.7,2439.1,3.2078]
[1750901515655,0.16802,2439.3,2439.1,4.02731]
[1750901516059,2.20618,2439.6,2439.2,0.8195]
[1750901516259,2.20618,2439.6,2439.2,5.02761466]
[1750901516260,0.16802,2439.3,2439.2,5.02761466]
[1750901516759,0.8194,2439.5,2439.2,5.02761466]
[1750901516961,0.16802,2439.3,2439.2,5.02761466]
[1750901517573,1.62022,2439.3,2439.2,5.02761466]
[1750901518665,2.43968,2439.3,2439.2,5.02761466]
[1750901518859,0.8195,2439.2,2439.1,3.2078]
[1750901519059,0.8195,2439.2,2438.6,1.61830234]
[1750901519060,32.26702,2439.2,2438.6,1.61830234]
[1750901519365,32.26702,2439.2,2438.5,0.81973]
[1750901519366,0.16802,2438.7,2438.5,0.81973]
[1750901519660,0.16802,2438.7,2438.4,4.02755]
[1750901519864,0.16802,2438.7,2438.4,3.2078]
[1750901519865,0.98771,2438.7,2438.4,3.2078]
[1750901520074,0.16802,2438.6,2438.4,3.2078]
[1750901520563,0.16802,2438.5,2438.4,3.2078]
[1750901520763,1.58332,2438.5,2438.4,3.2078]
[1750901520969,3.2078,2440.2,2438.8,0.81963]
[1750901521260,0.7023,2440.1,2439.6,3.2078]
[1750901521462,0.81931,2439.8,2439.6,3.2078]
[1750901521853,8.74327,2439.9,2439.6,3.2078]
[1750901522361,0.8193,2439.8,2439.6,3.2078]
[1750901522769,8.74328,2439.9,2439.6,3.2078]
[1750901523264,7.924,2439.9,2439.6,3.2078]
[1750901523462,3.2078,2440.1,2439.6,8.2078]
[1750901523663,3.95012983,2441.5,2439.6,8.2078]
[1750901523664,0.81874,2441.5,2440.0,9.84592883]
[1750901523960,0.81874,2441.5,2439.9,2.41577126]
[1750901523961,7.924,2441.6,2441.0,3.2078]
[1750901524262,1.4212,2441.4,2441.3,3.2078]
[1750901524467,2.23996,2441.4,2441.3,3.2078]
[1750901524663,1.4212,2441.4,2441.3,3.2078]
[1750901525869,9.3432,2441.4,2441.3,3.2078]
[1750901526565,2.23996,2441.4,2441.3,3.2078]
[1750901526767,17.551,2441.4,2440.6,3.2078]
[1750901527071,0.81887,2441.1,2440.9,3.2078]
[1750901527267,8.74087,2441.1,2440.9,3.2078]
[1750901527468,2.17879,2441.0,2440.9,3.2078]
[1750901528959,1.3599,2441.0,2440.9,3.2078]
[1750901529159,9.2809,2441.0,2440.9,3.2078]
[1750901529368,1.3599,2441.0,2440.9,3.2078]
[1750901529561,2.17879,2441.0,2440.9,3.2078]
[1750901530371,2.039,2441.0,2440.5,3.2078]
[1750901530572,0.81894,2440.9,2440.5,3.2078]
[1750901531075,2.17344,2440.9,2440.5,3.2078]
[1750901531272,1.3545,2440.9,2440.8,3.2078]
[1750901531476,8.73986,2441.1,2440.8,3.2078]
[1750901532466,0.81885,2441.2,2440.8,3.2078]
[1750901532671,8.73985,2441.2,2441.1,3.2078]
[1750901533872,0.8189,2441.0,2440.8,3.2078]
[1750901534069,0.81889,2441.0,2440.8,3.2078]
[1750901534372,0.81892,2440.9,2440.8,3.2078]
[1750901534667,0.81891,2441.0,2440.8,3.2078]
[1750901535468,0.81892,2440.9,2440.8,3.2078]
[1750901535868,5.0,2440.9,2440.4,3.2078]
[1750901536066,4.5392,2441.1,2440.4,3.2078]
[1750901536067,0.81906,2440.5,2440.4,3.2078]
[1750901536266,0.819,2440.7,2440.4,3.2078]
[1750901536569,7.92,2440.7,2440.4,9.10864693]
[1750901537065,9.376,2440.7,2440.4,9.10864693]
[1750901537273,10.19501,2440.7,2440.4,9.10864693]
[1750901537466,1.456,2440.7,2440.4,3.2078]
[1750901537673,0.81903,2440.6,2440.4,3.2078]
[1750901537968,2.27501,2440.7,2440.4,3.2078]
[1750901538676,1.456,2440.7,2440.4,3.2078]
[1750901538873,9.42818,2440.8,2440.4,9.10864693]
[1750901538874,7.921,2440.8,2440.4,9.10864693]
[1750901539074,8.73998,2440.8,2440.4,9.92773693]
[1750901539367,7.921,2440.8,2440.4,9.92773693]
[1750901539668,9.2742,2441.0,2440.7,9.10864693]
[1750901539864,7.921,2441.0,2440.7,9.10864693]
[1750901540265,7.921,2441.0,2440.7,9.92763693]
[1750901540467,7.921,2441.0,2440.8,0.81894]
[1750901540662,2.17201,2441.3,2440.8,0.81896]
[1750901540878,9.2732,2441.3,2440.8,2.91696]
[1750901541076,0.81883,2441.2,2440.8,2.91696]
[1750901541778,7.92,2441.8,2441.0,9.10864693]
[1750901541972,7.92,2441.8,2441.5,3.2078]
[1750901541973,0.81868,2441.7,2441.5,3.2078]
[1750901542274,28.7222,2442.0,2441.5,3.2078]
[1750901542275,9.3622,2442.0,2441.5,4.02651]
[1750901542476,7.92,2442.0,2441.7,5.90084693]
[1750901542677,8.73856,2442.0,2441.7,5.90084693]
[1750901542980,7.92,2442.0,2441.8,3.2078]
[1750901543374,8.73856,2442.0,2441.8,3.2078]
[1750901543679,0.81859,2441.9,2441.8,3.2078]
[1750901543876,3.2078,2443.3,2441.8,16.1268]
[1750901544080,1.4422,2443.6,2443.2,9.10864693]
[1750901544377,0.81811,2443.3,2443.2,3.2078]
[1750901544575,0.81811,2443.3,2442.5,0.7143]
[1750901544576,30.4938,2443.3,2442.5,0.7143]
[1750901544784,37.47522,2443.2,2442.6,9.92693693]
[1750901544969,35.231,2443.4,2443.0,5.90084693]
[1750901545273,0.81804,2443.4,2443.0,5.90084693]
[1750901545577,0.81799,2443.5,2443.0,7.29844693]
[1750901545771,36.04199,2443.5,2443.0,7.29844693]
[1750901546279,8.73699,2443.5,2443.0,7.29844693]
[1750901546480,0.81801,2443.4,2443.0,7.29844693]
[1750901546976,11.1268,2443.5,2442.9,3.8843]
[1750901547279,0.81813,2443.0,2442.9,3.8843]
[1750901547478,0.81812,2443.1,2442.9,3.8843]
[1750901548071,0.81814,2443.0,2442.9,3.8843]
[1750901548579,0.81814,2443.0,2442.9,3.2078]
[1750901549078,0.81824,2442.7,2442.6,7.34144693]
[1750901549279,0.81827,2442.6,2442.5,0.7143]
[1750901549679,0.81827,2442.6,2442.3,9.10864693]
[1750901549878,0.81822,2442.8,2442.3,9.10864693]
[1750901550082,0.81822,2442.8,2442.3,10.54924693]
[1750901550278,0.81825,2442.7,2442.3,10.54924693]
[1750901550477,1.3347,2442.9,2442.3,10.54924693]
[1750901550781,0.81819,2442.9,2442.3,11.36760693]
[1750901550968,0.81819,2442.9,2442.6,3.2078]
[1750901551571,0.8181,2443.2,2442.7,5.90084693]
[1750901551778,11.0058,2443.3,2442.7,8.00954693]
[1750901551977,11.0058,2443.3,2442.8,1.3861]
[1750901552185,0.8181,2443.2,2442.8,1.3861]
[1750901552384,0.8181,2443.2,2442.8,2.1148]
[1750901552684,3.2078,2443.7,2443.0,9.10864693]
[1750901552886,3.2078,2445.8,2443.7,2.04477]
[1750901553179,7.89051634,2447.0,2443.6,9.10864693]
[1750901553180,1.3724,2446.0,2445.6,3.2078]
[1750901553371,3.2078,2446.1,2445.3,9.10864693]
[1750901553576,7.797,2446.3,2444.8,2.0921]
[1750901553577,3.2078,2445.7,2445.2,3.2078]
[1750901553781,1.3643,2445.6,2445.2,3.2078]
[1750901554175,1.3643,2445.6,2445.2,4.02519]
[1750901554490,7.797,2446.0,2445.5,3.2078]
[1750901554686,7.797,2445.9,2445.5,3.2078]
[1750901555082,1.3643,2445.8,2445.5,3.2078]
[1750901555384,3.2078,2446.3,2445.5,3.2078]
[1750901555586,3.2078,2446.0,2445.5,4.5714]
[1750901555887,0.81718,2445.9,2445.5,3.2078]
[1750901556086,0.81718,2445.9,2445.5,4.5714]
[1750901556380,0.81718,2445.9,2445.2,8.61439]
[1750901556381,0.81736,2445.4,2445.2,3.2078]
[1750901556584,3.2078,2445.3,2444.9,3.2078]
[1750901556776,3.2078,2445.3,2444.6,5.90084693]
[1750901556777,3.2078,2445.0,2444.6,3.2078]
[1750901556976,3.2078,2445.5,2444.7,5.90084693]
[1750901557178,0.81743,2445.2,2444.9,3.2078]
[1750901557389,7.794,2445.3,2445.0,5.90084693]
[1750901557581,0.81744,2445.1,2445.0,5.90084693]
[1750901557784,9.1496,2445.3,2444.9,3.2078]
[1750901558180,9.96698,2445.3,2444.9,3.2078]
[1750901558379,0.81738,2445.3,2444.9,3.2078]
[1750901558593,0.81728,2445.6,2445.2,3.2078]
[1750901558780,7.793,2446.1,2445.5,3.2078]
[1750901559192,0.81727,2445.6,2445.5,3.2078]
[1750901559392,0.81725,2445.7,2445.5,3.2078]
[1750901559788,1.3556,2446.0,2445.5,3.2078]
[1750901560086,0.81719,2445.9,2445.5,3.2078]
[1750901560284,0.81716,2446.0,2445.5,3.2078]
[1750901560485,0.81716,2446.0,2445.6,1.3568]
[1750901560682,3.2078,2446.2,2445.7,6.71806693]
[1750901560877,17.38212192,2447.3,2446.1,5.90084693]
[1750901560878,3.2078,2446.6,2446.1,5.90084693]
[1750901561095,3.2078,2446.6,2445.9,3.2078]
[1750901561281,0.81727,2445.7,2445.6,3.2078]
[1750901561482,0.81722,2445.8,2445.6,3.2078]
[1750901561884,0.81734,2445.4,2445.3,3.2078]
[1750901562185,0.81732,2445.5,2445.1,5.90084693]
[1750901562384,0.8173,2445.6,2445.4,5.90084693]
[1750901562789,8.60824,2445.7,2445.4,5.90084693]
[1750901563090,8.60824,2445.7,2445.6,3.2078]
[1750901563590,0.81724,2445.7,2445.6,3.2078]
[1750901563983,0.8173,2445.5,2445.4,5.90084693]
[1750901564486,0.81734,2445.4,2445.3,3.2078]
[1750901565586,0.81732,2445.5,2445.3,3.2078]
[1750901565882,0.81734,2445.4,2445.3,3.2078]
[1750901566388,1.3264,2445.7,2445.3,3.2078]
[1750901566691,0.81734,2445.4,2445.3,3.2078]
[1750901566880,0.81731,2445.5,2445.3,3.2078]
[1750901567076,0.81734,2445.4,2445.3,3.2078]
[1750901567495,35.116,2445.6,2445.3,3.2078]
[1750901567788,0.81734,2445.4,2445.3,3.2078]
[1750901568586,0.81732,2445.5,2445.3,3.2078]
[1750901568890,0.81734,2445.4,2445.3,3.2078]
[1750901569089,28.6544,2445.7,2445.3,3.2078]
[1750901569090,0.81732,2445.5,2445.3,3.2078]
[1750901569381,1.3264,2445.7,2445.3,3.2078]
[1750901569382,0.81734,2445.4,2445.3,3.2078]
[1750901570185,0.81733,2445.5,2445.3,3.2078]
[1750901570385,0.81734,2445.4,2445.3,3.2078]
[1750901570784,36.4094,2445.7,2445.3,3.2078]
[1750901570980,0.81729,2445.6,2445.3,3.2078]
[1750901571483,3.2078,2446.2,2445.5,5.90084693]
[1750901571689,0.81719,2445.9,2445.8,5.90084693]
[1750901571891,0.81714,2446.0,2445.8,5.90084693]
[1750901572087,3.2078,2447.0,2445.9,3.2078]
[1750901572287,0.8168,2447.0,2446.9,9.10864693]
[1750901572494,3.2078,2447.6,2446.9,9.10864693]
[1750901572702,0.81661,2447.6,2447.4,5.90084693]
[1750901572884,3.2078,2447.9,2447.4,5.90084693]
[1750901572885,0.81664,2447.5,2447.4,5.90084693]
[1750901573088,3.2078,2447.9,2447.4,5.90084693]
[1750901573391,3.2078,2447.9,2447.8,5.90084693]
[1750901573592,10.9948,2448.9,2447.8,3.2078]
[1750901573793,3.2078,2448.1,2447.5,10.45534693]
[1750901574097,3.2078,2448.6,2447.9,3.2078]
[1750901574281,36.6246,2448.5,2448.0,3.2078]
[1750901574486,36.6246,2448.5,2447.7,5.90084693]
[1750901574487,3.2078,2448.3,2447.7,9.10864693]
[1750901574794,0.81639,2448.3,2448.1,9.10864693]
[1750901575098,30.67746932,2448.9,2448.1,9.10864693]
[1750901575099,0.08166932,2448.9,2448.1,9.10864693]
[1750901575289,1.4012,2448.8,2448.1,9.10864693]
[1750901575590,3.2078,2449.6,2448.8,0.8162]
[1750901575791,4.609,2449.6,2449.1,5.90084693]
[1750901575992,3.2078,2449.6,2449.4,5.90084693]
[1750901576184,3.2078,2449.6,2449.1,5.90084693]
[1750901576382,1.4012,2449.5,2448.8,9.10864693]
[1750901576681,0.29446674,2449.8,2449.2,9.10864693]
[1750901576682,1.11036674,2449.8,2449.2,9.10864693]
[1750901576885,0.29446674,2449.8,2449.5,3.2078]
[1750901577087,4.02345,2450.5,2449.6,6.71677693]
[1750901577292,3.2078,2450.8,2450.1,3.2078]
[1750901577588,3.2078,2450.8,2450.1,9.10864693]
[1750901577791,2.14488,2450.7,2450.1,9.10864693]
[1750901577990,3.2078,2450.8,2450.5,5.90084693]
[1750901578189,0.81565,2450.5,2450.1,9.10864693]
[1750901578388,9.3993,2450.7,2450.1,9.10864693]
[1750901578589,3.2078,2451.1,2450.6,3.2078]
[1750901578783,0.8155,2451.0,2450.6,3.2078]
[1750901578990,0.8155,2451.0,2450.5,5.90084693]
[1750901578991,3.2078,2451.2,2450.5,9.10864693]
[1750901579195,3.2078,2452.4,2450.9,3.2078]
[1750901579391,8.066,2452.3,2451.4,9.10864693]
[1750901579695,0.08155941,2452.2,2452.0,3.2078]
[1750901579901,11.2738,2452.1,2451.5,5.90084693]
[1750901580085,0.08156606,2452.0,2451.6,5.90084693]
[1750901580286,0.08156606,2452.0,2451.0,1.3253]
[1750901580287,0.08156606,2452.0,2451.9,3.2078]
[1750901580487,0.08156606,2452.0,2451.0,1.3253]
[1750901580488,0.81528,2451.6,2451.0,4.5331]
[1750901580700,1.3293,2451.9,2451.4,3.2078]
[1750901580990,3.28936606,2452.0,2451.4,3.2078]
[1750901581301,0.08156606,2452.0,2451.7,3.2078]
[1750901581692,0.08156606,2452.0,2451.8,8.16312719]
[1750901581902,0.08156606,2452.0,2451.9,1.4414]
[1750901582200,47.072,2453.1,2451.9,1.4414]
[1750901582201,8.425,2453.0,2451.9,1.4414]
[1750901582493,3.2078,2452.1,2451.2,3.2078]
[1750901582702,8.425,2452.0,2451.2,3.2078]
[1750901582895,3.2078,2451.3,2450.6,3.2078]
[1750901583090,3.2078,2451.0,2450.6,3.2078]
[1750901583401,3.2078,2451.4,2450.9,3.2078]
[1750901583598,8.425,2451.6,2450.6,8.16312719]
[1750901583793,1.3382,2451.5,2450.8,3.2078]
[1750901584087,3.2078,2452.3,2451.4,11.37092719]
[1750901584288,4.6295,2453.0,2452.0,3.2078]
[1750901584497,3.2078,2452.7,2452.2,8.16312719]
[1750901584689,1.0,2455.0,2452.6,3.2078]
[1750901584690,3.2078,2453.4,2452.6,3.2078]
[1750901584893,1.4217,2453.3,2452.6,3.2078]
[1750901585196,1.07884883,2454.8,2452.6,3.2078]
[1750901585197,3.2078,2453.9,2453.2,3.2078]
[1750901585402,3.2078,2453.9,2452.7,1.3344]
[1750901585403,3.2078,2453.4,2452.8,3.2078]
[1750901585605,28.728,2454.6,2452.7,1.3344]
[1750901585606,3.2078,2454.3,2453.2,11.37092719]
[1750901585793,3.2078,2454.3,2453.7,3.2078]
[1750901585995,3.2078,2454.0,2453.4,3.2078]
[1750901586189,3.2078,2455.1,2453.7,3.2078]
[1750901586487,3.2078,2453.9,2453.4,8.16312719]
[1750901586692,3.2078,2454.7,2453.8,8.16312719]
[1750901586998,1.4217,2455.9,2453.8,8.16312719]
[1750901586999,3.2078,2454.4,2453.9,1.3344]
[1750901587193,3.2078,2454.7,2454.0,8.16312719]
[1750901587500,3.2078,2454.7,2454.4,8.16312719]
[1750901587697,1.0,3353.1,2454.6,3.2078]
[1750901587698,3.2078,2455.6,2454.6,3.2078]
[1750901587891,3.2078,2455.6,2454.9,11.37092719]
[1750901588092,3.2078,2456.5,2454.9,87.72192719]
[1750901588401,1.3351,2456.7,2456.1,3.2078]
[1750901588604,3.2078,2456.2,2455.6,3.2078]
[1750901588795,3.2078,2455.9,2455.5,3.2078]
[1750901588997,3.2078,2455.6,2455.1,32.5637]
[1750901589191,3.2078,2455.3,2454.5,3.2078]
[1750901589395,3.2078,2456.0,2455.1,3.2078]
[1750901589596,1.3351,2456.0,2455.7,3.2078]
[1750901589800,3.2078,2456.6,2455.7,3.2078]
[1750901589991,3.2078,2456.0,2455.2,3.2078]
[1750901590195,1.3351,2456.4,2454.5,3.2078]
[1750901590196,3.2078,2455.5,2454.5,3.2078]
[1750901590400,3.2078,2454.8,2453.9,3.2078]
[1750901590600,3.2078,2454.4,2453.5,3.2078]
[1750901590902,3.2078,2453.7,2452.7,28.0]
[1750901591107,3.2078,2454.1,2453.1,8.16312719]
[1750901591398,3.2078,2453.7,2453.1,3.2078]